fUST/lending_fUST_20240524
["ID","MTS","AMOUNT","RATE_DAILY","PERIOD"]
[327787529,1716480276227,1497.26735822,9.999e-05,2]
[327787562,1716480631737,-2031.9,0.00016821,2]
[327787564,1716480631748,-776.02,0.00016822,2]
[327787567,1716480631762,-1181.1778938,0.00016822,2]
[327787569,1716480631771,-1709.8607377,0.00017228,2]
[327787571,1716480631781,-781.63906142,0.00017644,2]
[327787573,1716480631792,-785.52904795,0.00017644,2]
[327787575,1716480631805,-546.93599047,0.00017644,2]
[327787576,1716480631816,-43756.0918281,0.00017742,2]
[327787578,1716480631827,-759.6768311,0.00017742,2]
[327787599,1716480637741,-3336.44708546,0.00017742,2]
[327787601,1716480637754,-992.24267659,0.00017742,2]
[327787604,1716480637767,-733.07218339,0.00017742,2]
[327787606,1716480637784,-9851.97670994,0.00017742,2]
[327787608,1716480637795,-282.900112,0.00017743,2]
[327787610,1716480637805,-4453.16224921,0.00017743,2]
[327787613,1716480637821,-1100.12134184,0.00017743,2]
[327787615,1716480637832,-335.08,0.00017743,2]
[327787617,1716480637843,-5900.00000004,0.00017743,2]
[327787619,1716480637854,-1649.16941498,0.00017743,2]
[327787622,1716480637866,-4399.9953912,0.00017743,2]
[327787706,1716480640391,-5022.09605249,0.00017743,2]
[327787752,1716480640830,-2040.37555024,0.00017743,2]
[327787754,1716480640839,-2403.5481073,0.00017864,2]
[327787756,1716480640849,-250.75038956,0.0001794,2]
[327787758,1716480640859,-3518.6538605,0.0001804,2]
[327787760,1716480640868,-250.0,0.00018125,2]
[327787762,1716480640878,-388.0791354,0.000183,2]
[327787764,1716480640887,-2048.0089803,0.000189,2]
[327787766,1716480640896,-183.9,0.00019245,3]
[327787768,1716480640905,-551.73,0.00019245,3]
[327787770,1716480640914,-2349.63299335,0.00019255,11]
[327787772,1716480640923,-189.69827781,0.00019255,2]
[327787774,1716480640932,-523.67508811,0.00019352,2]
[327787776,1716480640941,-720.18654452,0.00019352,2]
[327787778,1716480640950,-788.33142356,0.00019352,2]
[327787780,1716480640959,-395.41357359,0.00019353,2]
[327787782,1716480640972,-8866.67508254,0.00019353,2]
[327787784,1716480640982,-781.63906139,0.00019371,2]
[327787786,1716480640991,-1332.46503836,0.00019532,2]
[327787788,1716480641001,-367.8,0.00020615,3]
[327787790,1716480641010,-3918.85284736,0.000209,2]
[327787792,1716480641019,-188.73935754,0.00020913,2]
[327787794,1716480641028,-248.46148782,0.00020913,2]
[327787796,1716480641037,-500.0,0.00020913,2]
[327787798,1716480641047,-359.0365645,0.00020913,2]
[327787800,1716480641056,-500.0,0.00020913,2]
[327787802,1716480641065,-500.0,0.00020913,2]
[327787804,1716480641075,-500.0,0.00020913,2]
[327787806,1716480641084,-500.0,0.00020913,2]
[327787808,1716480641093,-500.0,0.00020913,2]
[327787810,1716480641103,-364.24331535,0.00020913,2]
[327787812,1716480641113,-500.0,0.00020913,2]
[327787814,1716480641123,-500.0,0.00020913,2]
[327787817,1716480641132,-500.0,0.00020913,2]
[327787818,1716480641140,-500.0,0.00020913,2]
[327787820,1716480641149,-500.0,0.00020913,2]
[327787822,1716480641158,-500.0,0.00020913,2]
[327787824,1716480641167,-500.0,0.00020913,2]
[327787826,1716480641177,-500.0,0.00020913,2]
[327787842,1716480641315,-500.0,0.00020913,2]
[327787844,1716480641324,-500.0,0.00020913,2]
[327787846,1716480641334,-500.0,0.00020913,2]
[327787849,1716480641344,-500.0,0.00020913,2]
[327787851,1716480641353,-500.0,0.00020913,2]
[327787853,1716480641362,-290.9747088,0.00020913,2]
[327787854,1716480641371,-500.0,0.00020913,2]
[327787857,1716480641381,-305.93035988,0.00020913,2]
[327787859,1716480641391,-347.81339054,0.00020913,2]
[327787861,1716480641400,-4694.88024875,0.00021,2]
[327787863,1716480641409,-781.63906139,0.00021097,2]
[327787865,1716480641418,-1332.46503836,0.00021419,2]
[327787867,1716480641427,-166.666666,0.00021918,2]
[327787869,1716480641436,-167.417719,0.0002226,2]
[327787871,1716480641445,-151.0,0.00022294,3]
[327787873,1716480641454,-166.666666,0.00022431,2]
[327787874,1716480641464,-781.63906139,0.00022824,2]
[327787876,1716480641477,-1143.36406491,0.00022879,2]
[327787878,1716480641486,-166.666666,0.00022944,2]
[327787880,1716480641495,-430.3618645,0.00023,2]
[327787882,1716480641504,-153.0,0.00023014,2]
[327787884,1716480641513,-921.28647666,0.00023193,2]
[327787886,1716480641522,-151.0,0.00023306,3]
[327787889,1716480641533,-1332.46503836,0.00023307,2]
[327787891,1716480641542,-166.666666,0.00023456,2]
[327787893,1716480641552,-306.0,0.00023541,2]
[327787895,1716480641561,-620.00127675,0.00023693,2]
[327787897,1716480641570,-496.0,0.00023881,2]
[327787899,1716480641582,-2048.0089803,0.000239,2]
[327787901,1716480641591,-166.666666,0.00023969,2]
[327787903,1716480641601,-417.48839794,0.00024186,2]
[327787905,1716480641610,-4225.76789331,0.00024191,2]
[327787907,1716480641620,-2000.0,0.00024316,2]
[327787909,1716480641630,-151.0,0.00024318,5]
[327787911,1716480641639,-452.132606,0.00024384,2]
[327787913,1716480641648,-188.904626,0.00024384,2]
[327787915,1716480641658,-155.13331037,0.00024411,2]
[327787917,1716480641667,-772.21556016,0.00024411,2]
[327787919,1716480641676,-155.04341216,0.00024411,2]
[327787921,1716480641685,-658.18608772,0.00024412,2]
[327787923,1716480641695,-7896.38308987,0.00024414,2]
[327787925,1716480641708,-2205.01119504,0.00024414,2]
[327787927,1716480641723,-2345.57141052,0.00024414,2]
[327787929,1716480641732,-155.04341216,0.00024414,2]
[327787930,1716480641741,-281.31656163,0.00024414,2]
[327787932,1716480641751,-1350.52730768,0.00024414,2]
[327787934,1716480641762,-155.13331037,0.00024414,2]
[327787937,1716480641772,-455.56419663,0.00024415,2]
[327787939,1716480641781,-316.32323638,0.00024415,2]
[327787941,1716480641790,-5328.42618995,0.00024416,2]
[327787943,1716480641799,-2598.22535153,0.00024416,2]
[327787945,1716480641808,-1898.21836185,0.00024416,2]
[327787947,1716480641817,-2763.54365183,0.00024417,2]
[327787949,1716480641830,-8623.50906166,0.00024417,2]
[327787951,1716480641841,-3573.12429756,0.00024417,2]
[327788057,1716480642766,-419.44498683,0.00024417,2]
[327788059,1716480642779,-7875.87657032,0.00024417,2]
[327788061,1716480642791,-155.04341216,0.00024417,2]
[327788063,1716480642802,-5943.34521918,0.00024417,2]
[327788065,1716480642812,-223.79761603,0.00024417,2]
[327788067,1716480642823,-3980.09499401,0.00024417,2]
[327788069,1716480642833,-12333.20181566,0.00024417,2]
[327788071,1716480642843,-166.666666,0.00024482,2]
[327788073,1716480642853,-781.63906139,0.0002455,2]
[327788075,1716480642862,-335.77830531,0.00024556,11]
[327788077,1716480642875,-293.26520376,0.00024556,11]
[327788084,1716480642912,-4060.35920451,0.00024556,11]
[327788087,1716480642921,-11448.55011447,0.00024556,3]
[327788301,1716480645759,-8061.86718884,0.00024556,3]
[327788302,1716480645769,-7400.54780424,0.0002465,2]
[327788303,1716480645778,-200.0,0.0002465,7]
[327788304,1716480645788,-1978.57825249,0.00024654,2]
[327788305,1716480645799,-360.43967045,0.00024655,2]
[327788306,1716480645808,-186.95436808,0.00024655,2]
[327788308,1716480645817,-189.96457126,0.00024655,2]
[327788310,1716480645827,-187.1961905,0.00024655,2]
[327788311,1716480645836,-159.73051569,0.00024655,2]
[327788312,1716480645845,-155.16964927,0.00024655,2]
[327788313,1716480645854,-302.38073973,0.00024655,2]
[327788314,1716480645862,-187.33653148,0.00024655,2]
[327788315,1716480645871,-513.4844886,0.00024655,2]
[327788316,1716480645880,-550.85396294,0.00024656,2]
[327788317,1716480645889,-909.92037244,0.00024656,2]
[327788319,1716480645898,-11447.29986602,0.00024656,2]
[327788321,1716480645915,-63829.93948562,0.00024656,2]
[327788322,1716480645924,-3373.78266972,0.00024657,2]
[327788323,1716480645934,-293.13789451,0.00024657,2]
[327788324,1716480645943,-285.83068385,0.00024657,2]
[327788325,1716480645952,-500.0,0.00024657,2]
[327788326,1716480645962,-500.0,0.00024657,2]
[327788327,1716480645971,-155.39725698,0.00024657,2]
[327788328,1716480645983,-500.0,0.00024657,2]
[327788329,1716480645992,-500.0,0.00024657,2]
[327788330,1716480646002,-152.130202,0.00024657,2]
[327788331,1716480646011,-500.0,0.00024657,2]
[327788332,1716480646020,-500.0,0.00024657,2]
[327788333,1716480646029,-500.0,0.00024657,2]
[327788334,1716480646039,-500.0,0.00024657,2]
[327788335,1716480646047,-507.54,0.00024657,2]
[327788336,1716480646057,-500.0,0.00024657,2]
[327788337,1716480646066,-500.0,0.00024657,2]
[327788338,1716480646075,-500.0,0.00024657,2]
[327788339,1716480646084,-500.0,0.00024657,2]
[327788340,1716480646093,-487.85550363,0.00024657,2]
[327788341,1716480646102,-500.0,0.00024657,2]
[327788342,1716480646111,-500.0,0.00024657,2]
[327788343,1716480646120,-153.176804,0.00024657,2]
[327788344,1716480646130,-500.0,0.00024657,2]
[327788345,1716480646139,-500.0,0.00024657,2]
[327788346,1716480646148,-568.70107485,0.00024657,2]
[327788347,1716480646157,-500.0,0.00024657,2]
[327788348,1716480646167,-158.11944496,0.00024657,2]
[327788350,1716480646176,-691.01,0.00024657,2]
[327788352,1716480646185,-1000.0,0.00024657,2]
[327788354,1716480646194,-500.0,0.00024657,2]
[327788356,1716480646203,-500.0,0.00024657,2]
[327788358,1716480646212,-603.62,0.00024657,2]
[327788360,1716480646221,-557.4,0.00024657,2]
[327788361,1716480646231,-500.0,0.00024657,2]
[327788362,1716480646240,-151.0,0.00024657,2]
[327788363,1716480646249,-506.95015617,0.00024657,2]
[327788364,1716480646259,-500.0,0.00024657,2]
[327788365,1716480646269,-500.0,0.00024657,2]
[327788366,1716480646278,-500.0,0.00024657,2]
[327788367,1716480646288,-500.0,0.00024657,2]
[327788368,1716480646297,-508.14879845,0.00024657,2]
[327788369,1716480646307,-500.0,0.00024657,2]
[327788370,1716480646316,-901.81,0.00024657,2]
[327788371,1716480646325,-675.09,0.00024657,2]
[327788372,1716480646335,-500.0,0.00024657,2]
[327788373,1716480646343,-500.0,0.00024657,2]
[327788374,1716480646352,-500.0,0.00024657,2]
[327788375,1716480646362,-705.65,0.00024657,2]
[327788376,1716480646371,-500.0,0.00024657,2]
[327788377,1716480646380,-607.86782871,0.00024657,2]
[327788378,1716480646390,-500.0,0.00024657,2]
[327788379,1716480646400,-500.0,0.00024657,2]
[327788380,1716480646412,-500.0,0.00024657,2]
[327788381,1716480646421,-500.0,0.00024657,2]
[327788382,1716480646430,-541.74370716,0.00024657,2]
[327788383,1716480646439,-500.0,0.00024657,2]
[327788384,1716480646449,-500.0,0.00024657,2]
[327788385,1716480646458,-556.48,0.00024657,2]
[327788386,1716480646470,-500.0,0.00024657,2]
[327788387,1716480646482,-500.0,0.00024657,2]
[327788388,1716480646494,-500.0,0.00024657,2]
[327788389,1716480646504,-500.0,0.00024657,2]
[327788390,1716480646514,-500.0,0.00024657,2]
[327788391,1716480646526,-525.96,0.00024657,2]
[327788392,1716480646535,-500.0,0.00024657,2]
[327788393,1716480646545,-500.0,0.00024657,2]
[327788394,1716480646554,-500.0,0.00024657,2]
[327788395,1716480646563,-500.0,0.00024657,2]
[327788396,1716480646572,-794.73,0.00024657,2]
[327788397,1716480646581,-1390.95,0.00024657,2]
[327788398,1716480646590,-500.0,0.00024657,2]
[327788399,1716480646599,-366.54835689,0.00024657,2]
[327788400,1716480646608,-500.0,0.00024657,2]
[327788401,1716480646618,-500.0,0.00024657,2]
[327788402,1716480646627,-1487.4,0.00024657,2]
[327788403,1716480646636,-500.0,0.00024657,2]
[327788404,1716480646645,-500.0,0.00024657,2]
[327788405,1716480646655,-500.0,0.00024657,2]
[327788406,1716480646664,-500.0,0.00024657,2]
[327788407,1716480646673,-1582.74,0.00024657,2]
[327788408,1716480646683,-522.3,0.00024657,2]
[327788409,1716480646693,-187.667918,0.00024657,2]
[327788410,1716480646704,-500.0,0.00024657,2]
[327788411,1716480646716,-500.0,0.00024657,4]
[327788412,1716480646726,-500.0,0.00024657,2]
[327788413,1716480646736,-500.0,0.00024657,2]
[327788414,1716480646746,-500.0,0.00024657,2]
[327788415,1716480646755,-500.0,0.00024657,2]
[327788416,1716480646765,-1346.18,0.00024657,2]
[327788417,1716480646775,-500.0,0.00024657,2]
[327788418,1716480646785,-500.0,0.00024657,2]
[327788419,1716480646797,-634.86,0.00024657,2]
[327788420,1716480646806,-500.0,0.00024657,2]
[327788421,1716480646816,-500.0,0.00024657,2]
[327788422,1716480646825,-500.0,0.00024657,2]
[327788423,1716480646835,-500.0,0.00024657,2]
[327788424,1716480646844,-500.0,0.00024657,2]
[327788425,1716480646853,-2086.85,0.00024657,2]
[327788426,1716480646862,-988.73,0.00024657,2]
[327788427,1716480646871,-617.37,0.00024657,2]
[327788428,1716480646881,-500.0,0.00024657,2]
[327788429,1716480646890,-500.0,0.00024657,2]
[327788430,1716480646900,-500.0,0.00024657,2]
[327788431,1716480646909,-500.0,0.00024657,2]
[327788432,1716480646919,-2792.65,0.00024657,2]
[327788433,1716480646928,-500.0,0.00024657,2]
[327788434,1716480646938,-844.15,0.00024657,2]
[327788435,1716480646947,-151.0,0.00024657,2]
[327788436,1716480646957,-657.31,0.00024657,2]
[327788437,1716480646966,-500.0,0.00024657,2]
[327788438,1716480646975,-500.0,0.00024657,2]
[327788439,1716480646984,-2050.64,0.00024657,2]
[327788440,1716480646993,-500.0,0.00024657,2]
[327788441,1716480647002,-500.0,0.00024657,2]
[327788442,1716480647011,-500.0,0.00024657,2]
[327788443,1716480647020,-732.81,0.00024657,2]
[327788444,1716480647030,-500.0,0.00024657,2]
[327788445,1716480647039,-500.0,0.00024657,2]
[327788446,1716480647048,-500.0,0.00024657,2]
[327788447,1716480647057,-500.0,0.00024657,2]
[327788448,1716480647067,-500.0,0.00024657,2]
[327788449,1716480647076,-500.0,0.00024657,2]
[327788450,1716480647085,-500.0,0.00024657,2]
[327788451,1716480647094,-508.72019354,0.00024657,2]
[327788452,1716480647104,-500.0,0.00024657,2]
[327788453,1716480647113,-831.55,0.00024657,2]
[327788454,1716480647122,-504.88,0.00024657,2]
[327788455,1716480647132,-644.61,0.00024657,2]
[327788456,1716480647141,-646.08,0.00024657,2]
[327788457,1716480647150,-500.0,0.00024657,2]
[327788458,1716480647159,-500.0,0.00024657,2]
[327788459,1716480647169,-283.32660696,0.00024657,2]
[327788460,1716480647178,-186.83361465,0.00024657,2]
[327788461,1716480647187,-505.93902633,0.00024657,2]
[327788462,1716480647196,-500.0,0.00024657,2]
[327788463,1716480647205,-496.88575953,0.00024657,2]
[327788464,1716480647215,-500.0,0.00024657,2]
[327788465,1716480647225,-500.0,0.00024657,2]
[327788466,1716480647238,-1000.0,0.00024657,2]
[327788467,1716480647247,-1515.96,0.00024657,2]
[327788468,1716480647256,-2638.7,0.00024657,2]
[327788469,1716480647266,-151.0,0.00024657,2]
[327788470,1716480647275,-151.0,0.00024657,2]
[327788471,1716480647381,-151.0,0.00024657,2]
[327788472,1716480647392,-722.03,0.00024657,2]
[327788473,1716480647402,-151.0,0.00024657,2]
[327788474,1716480647413,-300.0,0.00024657,2]
[327788475,1716480647422,-677.96,0.00024657,2]
[327788476,1716480647431,-500.0,0.00024657,2]
[327788477,1716480647440,-500.0,0.00024657,2]
[327788478,1716480647449,-500.0,0.00024657,2]
[327788479,1716480647459,-2434.78,0.00024657,2]
[327788480,1716480647468,-561.67,0.00024657,2]
[327788481,1716480647479,-151.0,0.00024657,2]
[327788482,1716480647488,-151.0,0.00024657,2]
[327788483,1716480647497,-151.0,0.00024657,2]
[327788484,1716480647506,-500.0,0.00024657,2]
[327788485,1716480647516,-500.0,0.00024657,2]
[327788486,1716480647525,-500.0,0.00024657,2]
[327788487,1716480647535,-3408.15,0.00024657,2]
[327788488,1716480647544,-500.0,0.00024657,2]
[327788489,1716480647553,-151.0,0.00024657,2]
[327788490,1716480647561,-500.0,0.00024657,2]
[327788491,1716480647571,-500.0,0.00024657,2]
[327788492,1716480647580,-4409.81,0.00024657,2]
[327788493,1716480647589,-612.47631853,0.00024657,2]
[327788494,1716480647599,-1589.18,0.00024657,2]
[327788495,1716480647609,-500.0,0.00024657,2]
[327788496,1716480647618,-500.0,0.00024657,2]
[327788497,1716480647631,-566.21,0.00024657,2]
[327788498,1716480647640,-500.0,0.00024657,2]
[327788499,1716480647650,-1941.07,0.00024657,2]
[327788500,1716480647659,-500.0,0.00024657,2]
[327788501,1716480647668,-151.0,0.00024657,2]
[327788502,1716480647677,-151.0,0.00024657,2]
[327788503,1716480647686,-152.47377,0.00024657,2]
[327788504,1716480647696,-500.0,0.00024657,2]
[327788505,1716480647708,-500.0,0.00024657,2]
[327788506,1716480647718,-758.33,0.00024657,2]
[327788507,1716480647729,-500.0,0.00024657,2]
[327788508,1716480647739,-500.0,0.00024657,2]
[327788509,1716480647749,-657.53,0.00024657,2]
[327788510,1716480647759,-500.0,0.00024657,2]
[327788511,1716480647768,-500.0,0.00024657,2]
[327788512,1716480647777,-500.0,0.00024657,2]
[327788513,1716480647788,-653.46,0.00024657,2]
[327788514,1716480647797,-500.0,0.00024657,2]
[327788515,1716480647806,-500.0,0.00024657,2]
[327788516,1716480647815,-500.0,0.00024657,2]
[327788517,1716480647825,-500.0,0.00024657,2]
[327788518,1716480647833,-498.91155423,0.00024657,2]
[327788519,1716480647842,-3094.3,0.00024657,2]
[327788520,1716480647851,-500.0,0.00024657,2]
[327788521,1716480647860,-778.71,0.00024657,2]
[327788522,1716480647869,-500.0,0.00024657,2]
[327788523,1716480647878,-151.0,0.00024657,2]
[327788524,1716480647887,-673.19,0.00024657,2]
[327788525,1716480647896,-500.0,0.00024657,2]
[327788526,1716480647905,-500.0,0.00024657,2]
[327788527,1716480647914,-151.0,0.00024657,2]
[327788528,1716480647923,-501.6163406,0.00024657,2]
[327788529,1716480647932,-500.0,0.00024657,2]
[327788530,1716480647942,-151.0,0.00024657,2]
[327788531,1716480647951,-151.0,0.00024657,2]
[327788532,1716480647960,-167.750062,0.00024657,2]
[327788533,1716480647970,-500.0,0.00024657,2]
[327788534,1716480647980,-500.0,0.00024657,2]
[327788535,1716480647990,-500.0,0.00024657,2]
[327788536,1716480647999,-500.0,0.00024657,2]
[327788537,1716480648009,-500.0,0.00024657,2]
[327788538,1716480648018,-500.0,0.00024657,2]
[327788539,1716480648028,-1663.71,0.00024657,2]
[327788540,1716480648037,-1059.49,0.00024657,2]
[327788541,1716480648046,-500.0,0.00024657,2]
[327788542,1716480648056,-500.0,0.00024657,2]
[327788543,1716480648065,-500.0,0.00024657,2]
[327788544,1716480648075,-500.0,0.00024657,2]
[327788545,1716480648084,-500.0,0.00024657,2]
[327788546,1716480648094,-500.0,0.00024657,2]
[327788547,1716480648103,-500.0,0.00024657,2]
[327788548,1716480648113,-500.0,0.00024657,2]
[327788549,1716480648131,-151.0,0.00024657,2]
[327788550,1716480648150,-500.0,0.00024657,2]
[327788551,1716480648164,-151.0,0.00024657,2]
[327788552,1716480648181,-151.0,0.00024657,2]
[327788553,1716480648197,-787.67,0.00024657,2]
[327788554,1716480648215,-518.15325925,0.00024657,2]
[327788555,1716480648233,-151.0,0.00024657,2]
[327788556,1716480648248,-506.28157096,0.00024657,2]
[327788557,1716480648264,-500.0,0.00024657,2]
[327788558,1716480648280,-500.0,0.00024657,2]
[327788559,1716480648292,-500.0,0.00024657,2]
[327788560,1716480648307,-500.0,0.00024657,2]
[327788561,1716480648322,-605.5,0.00024657,2]
[327788562,1716480648338,-3961.22,0.00024657,2]
[327788563,1716480648355,-500.0,0.00024657,2]
[327788564,1716480648367,-500.0,0.00024657,2]
[327788565,1716480648379,-500.0,0.00024657,2]
[327788566,1716480648395,-500.0,0.00024657,2]
[327788567,1716480648408,-500.0,0.00024657,2]
[327788568,1716480648421,-512.52948118,0.00024657,2]
[327788569,1716480648435,-1082.11,0.00024657,2]
[327788570,1716480648447,-500.0,0.00024657,2]
[327788571,1716480648460,-500.0,0.00024657,2]
[327788572,1716480648473,-500.0,0.00024657,2]
[327788573,1716480648487,-500.0,0.00024657,2]
[327788574,1716480648501,-224.81500871,0.00024657,2]
[327788575,1716480648515,-1516.55,0.00024657,2]
[327788576,1716480648528,-866.19,0.00024657,2]
[327788577,1716480648541,-976.34,0.00024657,2]
[327788578,1716480648554,-5066.3,0.00024657,2]
[327788579,1716480648568,-500.0,0.00024657,2]
[327788580,1716480648580,-1333.23,0.00024657,2]
[327788581,1716480648593,-500.0,0.00024657,2]
[327788582,1716480648606,-507.60394303,0.00024657,2]
[327788583,1716480648619,-409.33864605,0.00024657,2]
[327788584,1716480648632,-500.0,0.00024657,2]
[327788585,1716480648645,-500.0,0.00024657,2]
[327788586,1716480648659,-714.3,0.00024657,2]
[327788587,1716480648672,-1066.18,0.00024657,2]
[327788588,1716480648686,-699.55,0.00024657,2]
[327788589,1716480648700,-500.0,0.00024657,2]
[327788590,1716480648716,-1902.71,0.00024657,2]
[327788591,1716480648732,-151.0,0.00024657,2]
[327788592,1716480648746,-3247.04,0.00024657,2]
[327788593,1716480648761,-680.41,0.00024657,2]
[327788594,1716480648776,-500.0,0.00024657,2]
[327788595,1716480648790,-738.58,0.00024657,2]
[327788596,1716480648803,-782.6,0.00024657,2]
[327788597,1716480648817,-882.0,0.00024657,2]
[327788598,1716480648829,-500.0,0.00024657,2]
[327788599,1716480648842,-1260.66,0.00024657,2]
[327788600,1716480648856,-274.11287588,0.00024657,2]
[327788601,1716480648868,-2212.36,0.00024657,2]
[327788602,1716480648881,-500.0,0.00024657,2]
[327788603,1716480648895,-500.0,0.00024657,2]
[327788604,1716480648908,-1952.01,0.00024657,2]
[327788605,1716480648921,-500.0,0.00024657,2]
[327788606,1716480648934,-500.0,0.00024657,2]
[327788607,1716480648951,-151.0,0.00024657,2]
[327788608,1716480648966,-151.0,0.00024657,2]
[327788609,1716480648982,-151.0,0.00024657,2]
[327788610,1716480648996,-3619.91,0.00024657,2]
[327788611,1716480649009,-500.0,0.00024657,2]
[327788612,1716480649023,-206.35660318,0.00024657,2]
[327788613,1716480649037,-500.0,0.00024657,2]
[327788614,1716480649052,-1115.76,0.00024657,2]
[327788615,1716480649066,-1712.6,0.00024657,2]
[327788616,1716480649080,-500.0,0.00024657,2]
[327788617,1716480649094,-500.0,0.00024657,2]
[327788618,1716480649107,-500.0,0.00024657,2]
[327788619,1716480649122,-500.0,0.00024657,2]
[327788620,1716480649133,-564.27665472,0.00024657,2]
[327788621,1716480649142,-23655.71,0.00024657,2]
[327788622,1716480649152,-500.0,0.00024657,2]
[327788623,1716480649162,-500.0,0.00024657,2]
[327788624,1716480649172,-500.0,0.00024657,2]
[327788625,1716480649182,-513.2776701,0.00024657,2]
[327788626,1716480649193,-699.37,0.00024657,2]
[327788627,1716480649385,-818.05,0.00024657,2]
[327788628,1716480649412,-3424.1,0.00024657,2]
[327788629,1716480649423,-500.0,0.00024657,2]
[327788630,1716480649433,-500.0,0.00024657,2]
[327788631,1716480649444,-500.0,0.00024657,2]
[327788632,1716480649454,-500.0,0.00024657,2]
[327788633,1716480649464,-7556.01,0.00024657,2]
[327788634,1716480649473,-717.4,0.00024657,2]
[327788635,1716480649484,-843.94,0.00024657,2]
[327788636,1716480649494,-151.0,0.00024657,2]
[327788637,1716480649503,-389.58849283,0.00024657,2]
[327788638,1716480649512,-1397.91,0.00024657,2]
[327788639,1716480649521,-151.0,0.00024657,2]
[327788640,1716480649531,-151.0,0.00024657,2]
[327788641,1716480649540,-202.74475,0.00024657,2]
[327788642,1716480649550,-500.0,0.00024657,2]
[327788643,1716480649559,-515.72519563,0.00024657,2]
[327788644,1716480649569,-1182.39,0.00024657,2]
[327788645,1716480649579,-500.0,0.00024657,2]
[327788646,1716480649588,-2623.01,0.00024657,2]
[327788647,1716480649596,-500.0,0.00024657,2]
[327788648,1716480649606,-644.76,0.00024657,2]
[327788649,1716480649615,-669.86,0.00024657,2]
[327788650,1716480649624,-719.57,0.00024657,2]
[327788651,1716480649634,-3061.03,0.00024657,2]
[327788652,1716480649644,-1982.01,0.00024657,2]
[327788653,1716480649654,-500.0,0.00024657,2]
[327788654,1716480649663,-151.0,0.00024657,2]
[327788655,1716480649673,-1482.25,0.00024657,2]
[327788656,1716480649682,-4728.47,0.00024657,2]
[327788657,1716480649692,-500.0,0.00024657,2]
[327788658,1716480649702,-500.0,0.00024657,2]
[327788659,1716480649715,-500.0,0.00024657,2]
[327788660,1716480649725,-500.0,0.00024657,2]
[327788661,1716480649736,-500.0,0.00024657,2]
[327788662,1716480649746,-500.0,0.00024657,2]
[327788663,1716480649759,-750.57,0.00024657,2]
[327788664,1716480649768,-500.0,0.00024657,2]
[327788665,1716480649778,-603.8,0.00024657,2]
[327788666,1716480649788,-2600.48,0.00024657,2]
[327788667,1716480649797,-500.0,0.00024657,2]
[327788668,1716480649808,-500.0,0.00024657,2]
[327788669,1716480649817,-666.07,0.00024657,2]
[327788670,1716480649826,-3005.52,0.00024657,2]
[327788671,1716480649835,-501.68406115,0.00024657,2]
[327788672,1716480649845,-680.84,0.00024657,2]
[327788673,1716480649854,-500.0,0.00024657,2]
[327788674,1716480649864,-3779.89,0.00024657,2]
[327788675,1716480649873,-500.0,0.00024657,2]
[327788676,1716480649883,-500.0,0.00024657,3]
[327788677,1716480649893,-500.0,0.00024657,4]
[327788678,1716480649902,-500.0,0.00024657,2]
[327788679,1716480649911,-619.64076308,0.00024657,5]
[327788680,1716480649921,-500.0,0.00024657,2]
[327788681,1716480649930,-500.0,0.00024657,2]
[327788682,1716480649939,-500.0,0.00024657,3]